bitfinex/quotes_SOLUSD_20250305
["timestamp","ask_amount","ask_price","bid_price","bid_amount"]
[1741175904905,31.03474116,147.32,147.31,44.42537017]
[1741175905100,31.03474116,147.32,147.31,182.82537017]
[1741175905826,31.03474116,147.32,147.31,501.61377017]
[1741175906124,35.67342518,147.43,147.32,18.64964886]
[1741175906333,2.0,147.43,147.36,31.03818622]
[1741175906504,2.0,147.43,147.36,7.40717754]
[1741175906505,9.07141188,147.38,147.36,7.40717754]
[1741175906700,9.07141188,147.38,147.37,31.03818622]
[1741175906911,9.07141188,147.38,147.37,188.08783508]
[1741175907324,20.48841665,147.4,147.38,18.64964886]
[1741175907629,20.48841665,147.4,147.39,54.43291906]
[1741175907828,20.48841665,147.4,147.39,275.13291906]
[1741175908833,10.23161646,147.44,147.39,275.48468622]
[1741175909038,10.23161646,147.44,147.4,1.42385852]
[1741175909216,10.23161646,147.44,147.43,31.03818622]
[1741175909421,10.23161646,147.44,147.43,563.73818622]
[1741175909738,10.23161646,147.44,147.43,570.52098622]
[1741175910307,2.0,147.51,147.43,570.52098622]
[1741175910508,2.0,147.51,147.43,258.52098622]
[1741175910706,10.23161646,147.52,147.47,31.03818622]
[1741175911028,10.23161646,147.52,147.44,220.7]
[1741175911029,2.0,147.51,147.44,220.7]
[1741175911210,2.0,147.51,147.44,82.3]
[1741175911806,2.0,147.51,147.45,6.7819]
[1741175913510,2.0,147.51,147.5,312.0]
[1741175913711,2.0,147.55,147.5,318.7793]
[1741175913911,2.0,147.54,147.47,31.03818622]
[1741175914112,2.0,147.5,147.46,6.7815]
[1741175914533,2.0,147.49,147.44,89.0819]
[1741175914736,2.0,147.51,147.44,89.0819]
[1741175915115,2.0,147.5,147.44,89.0819]
[1741175915438,2.0,147.5,147.44,6.7819]
[1741175915648,2.0,147.53,147.46,31.03818622]
[1741175915836,2.0,147.53,147.47,6.781]
[1741175916143,2.0,147.52,147.47,6.781]
[1741175916447,2.0,147.54,147.47,6.781]
[1741175916739,2.0,147.54,147.47,23.7336]
[1741175916919,2.0,147.53,147.47,23.7336]
[1741175917114,2.0,147.51,147.47,6.781]
[1741175917423,2.0,147.5,147.47,6.781]
[1741175917623,2.0,147.49,147.46,89.0813]
[1741175918637,2.0,147.5,147.46,89.0813]
[1741175918838,2.0,147.49,147.46,89.0813]
[1741175919039,2.0,147.49,147.46,6.7813]
[1741175919946,2.0,147.49,147.48,312.0]
[1741175920621,8.7801,147.49,147.48,312.0]
[1741175921721,2.0,147.49,147.48,312.0]
[1741175922323,2.0,147.5,147.48,312.0]
[1741175922541,2.0,147.5,147.46,6.7813]
[1741175923028,2.0,147.49,147.46,6.7813]
[1741175923232,2.0,147.49,147.42,6.7833]
[1741175923417,2.0,147.49,147.42,106.0416]
[1741175925656,8.7801,147.49,147.48,312.0]
[1741175926039,8.7801,147.49,147.4,89.084]
[1741175926040,2.0,147.44,147.4,89.084]
[1741175926220,2.0,147.43,147.38,82.333]
[1741175926424,2.0,147.42,147.39,6.7845]
[1741175927049,2.0,147.42,147.41,312.0]
[1741175928027,2.0,147.43,147.41,312.0]
[1741175928238,2.0,147.43,147.38,6.8178]
[1741175928764,2.0,147.45,147.38,6.8178]
[1741175929131,2.0,147.46,147.38,23.7807]
[1741175929451,2.0,147.46,147.38,54.81888622]
[1741175930253,2.0,147.46,147.39,31.03818622]
[1741175930457,2.0,147.47,147.39,31.03818622]
[1741175930624,2.0,147.47,147.4,31.03818622]
[1741175931251,2.0,147.47,147.46,312.0]
[1741175931564,0.03,147.51,147.46,318.7815]
[1741175931729,0.03,147.51,147.46,227.4815]
[1741175931929,2.03,147.51,147.46,227.4815]
[1741175932149,0.03,147.48,147.46,227.4815]
[1741175932357,0.03,147.48,147.46,89.0815]
[1741175933543,0.03,147.48,147.47,39.24276779]
[1741175933855,0.03,147.48,147.47,6.781]
[1741175934660,0.03,147.48,147.47,318.781]
[1741175941368,0.03,147.48,147.47,312.0]
[1741175942276,0.03,147.48,147.47,318.781]
[1741175942451,0.03,147.48,147.47,349.81918622]
[1741175942773,0.03,147.48,147.47,318.781]
[1741175943658,0.03,147.48,147.47,349.81918622]
[1741175943859,0.03,147.51,147.47,449.07178622]
[1741175944059,0.03,147.51,147.49,31.03818622]
[1741175944555,0.03,147.51,147.5,31.03818622]
[1741175944758,0.03,147.51,147.47,227.481]
[1741175944959,0.03,147.51,147.48,31.03818622]
[1741175945156,0.03,147.51,147.47,89.081]
[1741175945369,0.03,147.51,147.47,120.11918622]
[1741175945884,0.03,147.51,147.47,113.33818622]
[1741175946085,0.03,147.51,147.47,82.3]
[1741175946473,3.6112,147.5,147.42,5.88]
[1741175946786,2.0,147.49,147.4,31.03818622]
[1741175946958,2.0,147.48,147.4,31.03818622]
[1741175947159,2.0,147.48,147.39,119.87168622]
[1741175947367,2.0,147.48,147.4,31.03818622]
[1741175947567,84.9,147.49,147.4,31.03818622]
[1741175947768,82.9,147.49,147.43,31.03818622]
[1741175948054,7.8749,147.5,147.43,31.03818622]
[1741175948261,1.6112,147.5,147.43,31.03818622]
[1741175948479,1.6112,147.5,147.45,31.03818622]
[1741175949685,1.6112,147.5,147.46,31.03818622]
[1741175950080,1.6112,147.5,147.49,312.0]
[1741175950274,1.619,147.57,147.49,425.33818622]
[1741175950472,1.619,147.57,147.5,1.42293027]
[1741175950677,1.619,147.57,147.51,31.03818622]
[1741175951664,8.3954,147.57,147.5,31.03818622]
[1741175951872,2.0,147.56,147.49,138.4]
[1741175952069,1.42483777,147.58,147.51,31.03818622]
[1741175952289,0.03,147.63,147.57,31.03818622]
[1741175952610,0.03,147.63,147.59,31.03818622]
[1741175952791,2.0,147.61,147.56,5.94]
[1741175952990,2.0,147.62,147.56,5.94]
[1741175953209,2.03,147.63,147.56,36.97818622]
[1741175953410,0.03,147.63,147.62,312.0]
[1741175954889,2.03,147.63,147.62,312.0]
[1741175955187,0.03,147.63,147.62,312.0]
[1741175955612,84.93,147.63,147.62,312.0]
[1741175956811,0.03,147.63,147.62,312.0]
[1741175958413,2.03,147.63,147.62,312.0]
[1741175959003,8.8036,147.63,147.62,312.0]
[1741175962820,2.0,147.59,147.52,6.7783]
[1741175962998,2.0,147.59,147.52,37.81648622]
[1741175963198,2.0,147.58,147.52,37.81648622]
[1741175963818,2.0,147.58,147.57,312.0]
[1741175966807,22.26404886,147.58,147.57,312.0]
[1741175967119,29.03994886,147.58,147.57,312.0]
[1741175967699,1.6144,147.58,147.57,312.0]
[1741175968109,0.03,147.63,147.57,343.03818622]
[1741175968323,2.03,147.63,147.6,31.03818622]
[1741175968632,0.03,147.63,147.6,31.03818622]
[1741175968837,0.03,147.63,147.56,6.7769]
[1741175969008,1.45483777,147.63,147.57,31.03818622]
[1741175969207,0.03,147.63,147.57,31.03818622]
[1741175970235,2.03,147.63,147.57,31.03818622]
[1741175971205,2.03,147.63,147.62,312.0]
[1741175971406,84.93,147.63,147.62,312.0]
[1741175972108,82.93,147.63,147.62,312.0]
[1741175972335,89.7036,147.63,147.62,312.0]
[1741175972630,82.93,147.63,147.62,312.0]
[1741175972934,89.7036,147.63,147.62,312.0]
[1741175973306,91.7036,147.63,147.62,312.0]
[1741175973611,89.7036,147.63,147.62,312.0]
[1741175973831,82.93,147.63,147.62,312.0]
[1741175975308,89.7036,147.63,147.62,312.0]
[1741175975903,0.03,147.63,147.62,312.0]
[1741175976528,2.03,147.63,147.62,312.0]
[1741175978312,91.7036,147.63,147.62,312.0]
[1741175978738,110.49541043,147.63,147.62,312.0]
[1741175978932,29.16240977,147.63,147.62,312.0]
[1741175980342,29.16240977,147.63,147.5,0.033]
[1741175980343,18.64964886,147.56,147.5,0.033]
[1741175980545,20.64964886,147.56,147.5,0.033]
[1741175981040,2.0,147.55,147.5,0.033]
[1741175981243,2.0,147.55,147.54,312.0]
[1741175982457,1.42483777,147.62,147.54,349.81578622]
[1741175982661,2.03,147.63,147.54,349.81578622]
[1741175982662,2.0,147.61,147.54,6.7776]
[1741175983034,2.0,147.61,147.54,37.81578622]
[1741175983863,2.0,147.61,147.55,31.03818622]
[1741175984358,2.0,147.62,147.58,31.03818622]
[1741175984663,84.9,147.61,147.57,31.03818622]
[1741175985042,84.9,147.61,147.56,31.03818622]
[1741175985239,0.03,147.63,147.59,31.03818622]
[1741175985662,2.03,147.63,147.62,312.0]
[1741175985965,25.59541043,147.63,147.62,312.0]
[1741175986154,27.737572,147.63,147.62,312.0]
[1741175989070,2.0,147.55,147.5,31.07118622]
[1741175989276,2.0,147.54,147.5,6.8125]
[1741175989768,2.0,147.54,147.5,37.85068622]
[1741175989969,2.0,147.54,147.5,6.8125]
[1741175990144,2.0,147.54,147.53,312.0]
[1741175993945,2.0,147.56,147.53,312.0]
[1741175994144,2.0,147.56,147.5,0.033]
[1741175994344,84.9,147.56,147.5,31.07118622]
[1741175994563,2.0,147.54,147.5,0.033]
[1741175995451,2.0,147.53,147.5,0.033]
[1741175995772,84.9,147.52,147.5,0.033]
[1741175996865,2.0,147.51,147.5,0.033]
[1741175997166,2.0,147.51,147.5,312.033]
[1741175997470,82.9,147.52,147.5,312.033]
[1741175997656,82.9,147.54,147.5,37.85048622]
[1741175997856,2.0,147.53,147.5,0.033]
[1741175998058,22.07448663,147.53,147.5,0.033]
[1741175998379,2.0,147.51,147.5,0.033]
[1741175999369,2.0,147.52,147.5,0.033]
[1741175999767,84.9,147.54,147.5,0.033]
[1741175999950,2.0,147.55,147.51,31.03818622]
[1741176000151,2.0,147.55,147.5,31.07118622]
[1741176000460,82.9,147.56,147.51,31.03818622]
[1741176000756,84.9,147.56,147.55,312.0]
[1741176000961,2.0,147.57,147.55,312.0]
[1741176001147,2.0,147.57,147.52,31.03818622]
[1741176001343,2.0,147.55,147.51,31.03818622]
[1741176001693,2.0,147.57,147.52,6.7787]
[1741176002141,2.0,147.56,147.52,6.7787]
[1741176002342,2.0,147.57,147.52,6.7787]
[1741176002650,2.0,147.54,147.5,31.07118622]
[1741176002857,2.0,147.53,147.5,6.8125]
[1741176003057,84.9,147.56,147.5,37.85068622]
[1741176003370,2.0,147.53,147.5,0.033]
[1741176003576,6.7765,147.57,147.5,0.033]
[1741176003577,2.0,147.52,147.5,0.033]
[1741176004151,87.88823777,147.55,147.51,312.0]
[1741176004349,86.4634,147.55,147.51,312.0]
[1741176004549,2.0,147.53,147.5,0.033]
[1741176004779,2.0,147.52,147.5,0.033]
[1741176005076,103.833972,147.51,147.5,0.033]
[1741176005375,22.35880977,147.51,147.5,0.033]
[1741176006860,2.0,147.51,147.5,0.033]
[1741176007061,2.0,147.52,147.5,0.033]
[1741176007660,20.64964886,147.52,147.51,312.0]
[1741176007969,84.9,147.53,147.51,312.0]
[1741176008151,84.9,147.53,147.5,0.033]
[1741176008664,2.0,147.56,147.51,31.03818622]
[1741176008991,84.9,147.57,147.51,31.03818622]
[1741176009281,2.0,147.53,147.5,6.8122]
[1741176009482,2.0,147.51,147.5,0.033]
[1741176009659,0.53084231,147.51,147.5,0.033]
[1741176010051,19.46481431,147.51,147.5,0.033]
[1741176010268,18.933972,147.5,147.47,0.033]
[1741176010463,19.46481431,147.48,147.47,0.033]
[1741176011262,19.46481431,147.48,147.47,312.033]
[1741176011584,19.18049117,147.48,147.47,312.033]
[1741176011755,0.53084231,147.5,147.47,312.033]
[1741176011960,0.53084231,147.5,147.47,0.033]
[1741176012490,0.53084231,147.51,147.47,0.033]
[1741176012658,0.53084231,147.5,147.47,0.033]
[1741176013265,0.53084231,147.48,147.47,0.033]
[1741176013473,19.46481431,147.48,147.47,0.033]
[1741176013674,27.95821431,147.48,147.47,0.033]
[1741176014260,21.17771431,147.48,147.47,0.033]
[1741176014881,21.17771431,147.48,147.47,312.033]
[1741176015392,20.89339117,147.48,147.47,312.033]
[1741176015576,19.18049117,147.48,147.47,312.033]
[1741176015780,26.24531431,147.48,147.47,312.033]
[1741176015982,27.67015208,147.48,147.47,312.033]
[1741176016183,0.53084231,147.43,147.39,0.033]
[1741176016692,0.53084231,147.44,147.39,37.85568622]
[1741176017070,0.53084231,147.44,147.43,312.0]
[1741176017270,0.53084231,147.48,147.43,312.0]
[1741176017496,0.53084231,147.49,147.43,312.0]
[1741176017667,19.18049117,147.49,147.43,31.03818622]
[1741176017863,18.64964886,147.49,147.43,37.82078622]
[1741176018094,0.53084231,147.5,147.44,31.03818622]
[1741176018387,83.43084231,147.51,147.45,31.03818622]
[1741176018793,0.53084231,147.52,147.46,31.03818622]
[1741176018992,83.43084231,147.55,147.51,31.03818622]
[1741176019189,82.9,147.54,147.45,83.72327325]
[1741176019396,0.53084231,147.55,147.49,31.03818622]
[1741176019578,0.53084231,147.52,147.43,256.8197]
[1741176019896,0.53084231,147.5,147.46,6.7815]
[1741176020098,0.53084231,147.48,147.44,6.7824]
[1741176020388,0.53084231,147.47,147.44,6.7824]
[1741176020578,0.53084231,147.48,147.46,312.0]
[1741176020975,0.53084231,147.47,147.46,312.0]
[1741176021183,19.46481431,147.47,147.46,312.0]
[1741176021989,26.24581431,147.47,147.46,312.0]
[1741176022183,19.18049117,147.47,147.46,312.0]
[1741176022595,0.53084231,147.5,147.46,312.0]
[1741176022777,84.32483777,147.53,147.46,31.03818622]
[1741176022778,83.43084231,147.53,147.46,31.03818622]
[1741176022976,83.43084231,147.53,147.45,6.7819]
[1741176022977,0.53084231,147.52,147.47,31.03818622]
[1741176023183,82.9,147.53,147.46,31.03818622]
[1741176023184,83.43084231,147.53,147.46,31.03818622]
[1741176023378,83.43084231,147.53,147.47,31.03818622]
[1741176023580,0.53084231,147.55,147.5,31.03818622]
[1741176023781,0.53084231,147.55,147.48,6.0645]
[1741176023782,0.53084231,147.51,147.48,37.10268622]
[1741176023992,0.53084231,147.52,147.48,43.88308622]
[1741176024201,0.53084231,147.52,147.48,6.7804]
[1741176024397,0.53084231,147.53,147.48,37.81858622]
[1741176024582,82.9,147.54,147.49,31.03818622]
[1741176024782,83.43084231,147.57,147.5,31.03818622]
[1741176025094,0.53084231,147.56,147.5,31.03818622]
[1741176025396,83.43084231,147.57,147.51,31.03818622]
[1741176025598,82.9,147.57,147.52,31.03818622]
[1741176025805,26.09905274,147.57,147.56,312.0]
[1741176026183,19.32265274,147.57,147.56,312.0]
[1741176026386,19.18049117,147.57,147.56,312.0]
[1741176026591,0.53084231,147.58,147.56,312.0]
[1741176026891,0.53084231,147.56,147.51,31.03818622]
[1741176027071,0.53084231,147.53,147.51,31.03818622]
[1741176027883,0.53084231,147.53,147.51,37.81718622]
[1741176028120,0.53084231,147.54,147.51,37.81718622]
[1741176028888,0.4290784,147.54,147.51,31.03818622]
[1741176029613,0.4290784,147.56,147.51,37.81718622]
[1741176029816,0.4290784,147.58,147.53,312.0]
[1741176030019,0.4290784,147.57,147.53,349.81638622]
[1741176030217,0.4290784,147.54,147.5,37.81748622]
[1741176030395,0.4290784,147.56,147.5,37.81748622]
[1741176030594,0.4290784,147.56,147.51,31.03818622]
[1741176030806,0.4290784,147.57,147.52,31.03818622]
[1741176031499,0.4290784,147.58,147.53,31.03818622]
[1741176031703,0.4290784,147.57,147.53,31.03818622]
[1741176031907,0.4290784,147.59,147.55,31.03818622]
[1741176032098,0.03,147.62,147.58,31.03818622]
[1741176032312,0.03,147.62,147.61,31.03818622]
[1741176032619,0.03,147.62,147.61,37.58708622]
[1741176033131,0.0001,147.63,147.61,289.32527244]
[1741176033427,0.0001,147.63,147.62,63.49811448]
[1741176033794,0.0001,147.63,147.62,31.03818622]
[1741176033991,0.0001,147.63,147.62,37.81228622]
[1741176034310,0.0001,147.63,147.62,31.03818622]
[1741176034689,0.0001,147.63,147.61,37.58708622]
[1741176034895,0.0001,147.63,147.61,6.5489]
[1741176035096,0.0001,147.63,147.62,31.03818622]
[1741176035917,0.0001,147.63,147.6,31.03818622]
[1741176036123,0.4291784,147.63,147.59,31.03818622]
[1741176036821,0.4291784,147.63,147.55,31.03818622]
[1741176036822,0.4290784,147.59,147.55,31.03818622]
[1741176037008,0.4290784,147.57,147.53,31.03818622]
[1741176037212,82.9,147.62,147.52,88.18]
[1741176037213,0.4290784,147.56,147.52,119.21818622]
[1741176037519,0.4290784,147.56,147.52,113.33818622]
[1741176037720,0.4290784,147.56,147.53,31.03818622]
[1741176037917,0.4290784,147.6,147.55,31.03818622]
[1741176038108,0.4290784,147.61,147.56,31.03818622]
[1741176038512,0.4291784,147.63,147.59,31.03818622]
[1741176038818,0.0001,147.63,147.59,31.03818622]
[1741176039020,0.4291784,147.63,147.59,31.03818622]
[1741176039405,0.0001,147.63,147.6,31.03818622]
[1741176039610,0.0001,147.63,147.61,31.03818622]
[1741176039828,0.0001,147.63,147.61,343.03818622]
[1741176040042,0.0001,147.63,147.57,31.03818622]
[1741176040043,0.4290784,147.61,147.57,31.03818622]
[1741176040502,0.0001,147.63,147.6,31.03818622]
[1741176040701,0.0001,147.63,147.62,31.03818622]
[1741176041124,0.0001,147.63,147.62,251.73818622]
[1741176041616,0.0001,147.63,147.62,31.03818622]
[1741176042212,0.0001,147.63,147.61,37.81238622]
[1741176042923,0.0001,147.63,147.62,312.0]
[1741176043324,0.0001,147.63,147.62,343.03818622]
[1741176043947,0.0001,147.63,147.62,349.81228622]
[1741176044122,0.4291784,147.63,147.6,31.03818622]
[1741176044322,0.4290784,147.61,147.57,37.81418622]
[1741176044526,0.4290784,147.6,147.57,6.776]
[1741176044833,0.4290784,147.6,147.56,6.7767]
[1741176045042,0.4290784,147.59,147.56,6.7767]
[1741176045224,0.4290784,147.59,147.55,12.6573]
[1741176045423,84.32483777,147.62,147.55,5.88]
[1741176045424,0.4290784,147.57,147.55,5.88]
[1741176045627,0.4290784,147.56,147.52,6.8115]
[1741176046160,0.4290784,147.56,147.52,37.84968622]
[1741176046344,0.4290784,147.55,147.52,6.8115]
[1741176047029,0.4290784,147.59,147.53,31.03818622]
[1741176047227,0.4290784,147.6,147.54,31.03818622]
[1741176047617,2.1642784,147.62,147.55,31.03818622]
[1741176047819,2.1642784,147.62,147.56,31.03818622]
[1741176048046,2.1642784,147.62,147.59,6.7755]
[1741176048839,2.1642784,147.62,147.54,1.42250807]
[1741176049033,2.1642784,147.62,147.57,31.03818622]
[1741176049234,0.4290784,147.6,147.56,31.03818622]
[1741176049434,0.4290784,147.6,147.57,31.03818622]
[1741176050847,0.0001,147.63,147.59,343.03818622]
[1741176051026,0.0001,147.63,147.62,31.03818622]
[1741176051219,0.0001,147.63,147.62,282.77637244]
[1741176051922,0.0001,147.63,147.62,113.33818622]
[1741176052127,0.0001,147.63,147.62,31.03818622]
[1741176052546,0.0001,147.63,147.61,37.81268622]
[1741176052747,0.0001,147.63,147.62,31.03818622]
[1741176053248,0.0001,147.63,147.62,37.81228622]
[1741176054242,0.0001,147.63,147.62,349.81228622]
[1741176054638,0.0001,147.63,147.62,380.85047244]
[1741176054835,0.0001,147.63,147.62,68.85047244]
[1741176055038,0.0001,147.63,147.62,37.81228622]
[1741176056131,0.0001,147.63,147.62,70.27251883]
[1741176056348,0.0001,147.63,147.62,39.23433261]
[1741176057555,0.0001,147.63,147.62,70.27251883]
[1741176057845,0.0001,147.63,147.62,291.25684197]
[1741176058053,0.0001,147.63,147.62,296.09949558]
[1741176058855,0.03,147.72,147.66,0.28432314]
[1741176059025,0.03,147.72,147.71,31.03818622]
[1741176059535,0.03,147.72,147.71,37.80818622]
[1741176059855,0.03,147.77,147.71,137.03318622]
[1741176060056,0.03,147.77,147.73,31.03818622]
[1741176060451,0.4290784,147.76,147.71,120.10818622]
[1741176060648,0.4290784,147.72,147.68,37.80948622]
[1741176060854,84.35483777,147.77,147.67,88.18]
[1741176060855,0.4290784,147.69,147.67,5.88]
[1741176061028,0.4290784,147.69,147.67,12.6518]
[1741176061225,0.4290784,147.68,147.63,31.03818622]
[1741176061433,0.4290784,147.66,147.62,31.03818622]
[1741176061630,14.7089,147.7,147.61,31.03818622]
[1741176061631,0.4290784,147.65,147.61,31.03818622]
[1741176061934,0.4290784,147.64,147.61,31.03818622]
[1741176062124,0.4290784,147.65,147.62,31.03818622]
[1741176062330,0.4290784,147.66,147.62,31.03818622]
[1741176062663,0.4290784,147.68,147.64,50.21949597]
[1741176062833,0.4290784,147.64,147.62,50.21949597]
[1741176063655,0.4290784,147.64,147.61,56.99389597]
[1741176063854,0.4290784,147.64,147.61,56.99399597]
[1741176064059,0.4290784,147.68,147.63,50.21949597]
[1741176064360,8.3674784,147.7,147.65,50.21949597]
[1741176064736,0.4290784,147.68,147.62,50.21949597]
[1741176064958,0.4290784,147.65,147.62,312.0]
[1741176065260,0.4290784,147.64,147.6,50.21949597]
[1741176065564,0.4290784,147.63,147.59,50.21949597]
[1741176065748,0.4290784,147.63,147.59,56.99489597]
[1741176066153,0.4290784,147.63,147.62,0.033]
[1741176067643,0.4290784,147.63,147.53,6.7782]
[1741176067644,0.28432314,147.62,147.53,6.7782]
[1741176067867,0.4290784,147.57,147.52,56.13249597]
[1741176068041,0.4290784,147.57,147.53,50.21949597]
[1741176068763,2.1543784,147.6,147.55,50.21949597]
[1741176068963,1.7253,147.6,147.56,50.21949597]
[1741176069271,0.4290784,147.63,147.59,50.21949597]
[1741176069568,0.4290784,147.68,147.63,6.7736]
[1741176069866,82.9,147.69,147.63,50.21949597]
[1741176069867,0.4290784,147.67,147.63,50.21949597]
[1741176070061,0.4290784,147.67,147.61,5.88]
[1741176070062,0.4290784,147.67,147.61,56.09949597]
[1741176070272,0.4290784,147.63,147.61,5.88]
[1741176070438,0.4290784,147.58,147.54,5.88]
[1741176070638,0.4290784,147.58,147.54,12.6577]
[1741176070864,2.1216784,147.61,147.56,50.21949597]
[1741176071171,1.6926,147.61,147.57,50.21949597]
[1741176071363,2.1216784,147.61,147.57,50.21949597]
[1741176071671,2.1677784,147.65,147.6,50.21949597]
[1741176071840,1.7387,147.65,147.62,362.21949597]
[1741176072166,0.4290784,147.61,147.57,270.91949597]
[1741176072374,0.4290784,147.61,147.57,50.21949597]
[1741176072876,0.4290784,147.61,147.58,50.21949597]
[1741176073067,1.7387,147.65,147.6,50.21949597]
[1741176073380,1.7387,147.65,147.61,50.21949597]
[1741176073884,1.7387,147.65,147.56,270.91949597]
[1741176073885,0.4290784,147.66,147.62,56.99359597]
[1741176074049,0.4290784,147.66,147.62,6.7741]
[1741176075163,0.4290784,147.66,147.63,312.0]
[1741176075955,0.4290784,147.66,147.63,318.7734]
[1741176076250,0.4290784,147.58,147.54,6.7778]
[1741176076959,0.4290784,147.6,147.55,50.21949597]
[1741176077266,0.4290784,147.62,147.57,50.21949597]
[1741176077457,0.4290784,147.62,147.58,50.21949597]
[1741176077777,0.4290784,147.62,147.57,50.21949597]
[1741176077947,0.4290784,147.59,147.53,6.7779]
[1741176078478,0.4290784,147.58,147.53,6.7779]
[1741176078652,0.4290784,147.58,147.53,56.99739597]
[1741176079371,0.4290784,147.58,147.54,50.21949597]
[1741176079574,0.4290784,147.6,147.55,50.21949597]
[1741176079761,0.4290784,147.61,147.55,50.21949597]
[1741176080376,0.4290784,147.61,147.55,56.99639597]
[1741176080582,0.4290784,147.6,147.55,56.99639597]
[1741176080755,0.4290784,147.6,147.56,50.21949597]
[1741176081467,0.4290784,147.6,147.55,56.99639597]
[1741176081777,0.4290784,147.61,147.56,50.21949597]
[1741176082080,0.4290784,147.62,147.57,50.21949597]
[1741176082583,8.1203,147.64,147.56,12.6568]
[1741176082584,0.4290784,147.59,147.56,12.6568]
[1741176082766,0.4290784,147.58,147.56,317.88]
[1741176083163,0.4290784,147.59,147.56,324.6567]
[1741176083584,0.4290784,147.59,147.56,317.88]
[1741176084281,0.4290784,147.6,147.56,62.87609597]
[1741176084579,0.4290784,147.62,147.58,30.92524348]
[1741176084776,0.4290784,147.63,147.58,30.92524348]
[1741176084960,0.4290784,147.63,147.56,111.8988]
[1741176085161,0.4290784,147.59,147.56,94.9566]
[1741176085387,9.54513777,147.64,147.57,30.92524348]
[1741176085388,83.3290784,147.63,147.57,30.92524348]
[1741176085562,0.4290784,147.63,147.59,30.92524348]
[1741176085751,1.7616,147.64,147.61,30.92524348]
[1741176085948,0.4290784,147.65,147.61,30.92524348]
[1741176086679,0.4290784,147.65,147.62,30.92524348]
[1741176086892,0.03,147.66,147.63,30.92524348]
[1741176087261,0.03,147.66,147.63,342.92524348]
[1741176087798,0.03,147.66,147.64,30.92524348]
[1741176088375,0.03,147.66,147.65,6.7727]
[1741176088593,0.03,147.66,147.65,37.69794348]
[1741176088894,8.0816,147.72,147.65,144.51584851]
[1741176088895,1.7897,147.72,147.65,144.51584851]
[1741176089066,1.7897,147.72,147.7,30.92524348]
[1741176089464,0.03,147.72,147.7,30.92524348]
[1741176090066,0.03,147.72,147.71,30.92524348]
[1741176090297,0.03,147.72,147.71,37.69524348]
[1741176091482,0.03,147.72,147.71,349.69524348]
[1741176092080,0.0001,147.72,147.71,349.69524348]
[1741176092598,0.0001,147.72,147.67,6.7718]
[1741176092770,0.0001,147.72,147.67,119.99704348]
[1741176092970,0.0001,147.72,147.69,30.92524348]
[1741176094480,0.4290784,147.71,147.66,138.4]
[1741176094683,0.4290784,147.7,147.66,138.4]
[1741176094868,0.4290784,147.7,147.66,169.32524348]
[1741176095606,0.4290784,147.7,147.67,312.0]
[1741176096491,0.4290784,147.67,147.63,30.92524348]
[1741176096704,0.4290784,147.66,147.63,30.92524348]
[1741176097094,0.4290784,147.69,147.64,30.92524348]
[1741176097280,0.4290784,147.69,147.66,30.92524348]
[1741176097600,6.7887784,147.71,147.66,30.92524348]
[1741176097777,6.7887784,147.71,147.65,30.92524348]
[1741176098193,0.4290784,147.7,147.65,82.3]
[1741176098373,0.4290784,147.7,147.66,30.92524348]
[1741176098574,0.4290784,147.7,147.66,37.69744348]
[1741176098879,6.7887784,147.71,147.66,37.69744348]
[1741176099279,6.7887784,147.71,147.66,349.69744348]
[1741176100308,0.4290784,147.7,147.66,349.69744348]
[1741176100489,0.4290784,147.7,147.66,312.0]
[1741176100687,0.4290784,147.68,147.66,312.0]
[1741176100871,0.4290784,147.67,147.63,138.4]
[1741176101075,0.4290784,147.67,147.62,120.03214348]
[1741176101277,0.4290784,147.66,147.63,30.92524348]
[1741176101488,0.4290784,147.66,147.62,89.1069]